bitfinex/quotes_BTCUSD_20250320
["timestamp","ask_amount","ask_price","bid_price","bid_amount"]
[1742491876281,4e-07,83981.0,83980.0,0.36963303]
[1742491876494,0.2381494,83981.0,83980.0,0.25684186]
[1742491876710,0.00264036,83981.0,83980.0,0.49499286]
[1742491876892,0.00264036,83981.0,83980.0,0.50689986]
[1742491877413,4e-07,83981.0,83980.0,0.50689986]
[1742491877615,4e-07,83981.0,83980.0,0.51089986]
[1742491877842,4e-07,83981.0,83980.0,2.00689986]
[1742491878444,4e-07,83981.0,83980.0,2.02644071]
[1742491878619,4e-07,83981.0,83980.0,2.02944071]
[1742491879049,4e-07,83981.0,83980.0,2.02444071]
[1742491879598,4e-07,83981.0,83980.0,2.12744071]
[1742491880019,4e-07,83981.0,83980.0,2.12444071]
[1742491880371,4e-07,83981.0,83980.0,2.12644071]
[1742491880899,4e-07,83981.0,83980.0,2.13044071]
[1742491881611,4e-07,83981.0,83980.0,2.54406853]
[1742491884403,4e-07,83981.0,83980.0,2.56842257]
[1742491886502,4e-07,83981.0,83980.0,2.65102257]
[1742491886710,8e-07,83991.0,83990.0,0.1]
[1742491886910,8e-07,83991.0,83990.0,1.13084533]
[1742491887115,8e-07,83991.0,83990.0,1.12846488]
[1742491887330,8e-07,83991.0,83990.0,1.13346488]
[1742491887730,8e-07,83991.0,83990.0,2.63346488]
[1742491887936,8e-07,83991.0,83990.0,3.0470927]
[1742491889306,8e-07,83991.0,83990.0,3.0530927]
[1742491891050,0.0817,84019.0,84000.0,0.434299]
[1742491891051,2e-07,84001.0,84000.0,0.434299]
[1742491891256,2e-07,84001.0,84000.0,1.1188827]
[1742491891672,2e-07,84001.0,84000.0,2.6188827]
[1742491892072,2e-07,84001.0,84000.0,3.1192827]
[1742491892276,0.001,84019.0,84018.0,0.349946]
[1742491892482,0.0003382,84025.0,84018.0,0.349946]
[1742491892483,0.0003382,84025.0,84024.0,0.26446885]
[1742491892687,2e-07,84025.0,84024.0,1.44481378]
[1742491892907,2e-07,84025.0,84024.0,1.46981378]
[1742491893463,2e-07,84025.0,84024.0,1.47020061]
[1742491893859,2e-07,84025.0,84024.0,1.48236583]
[1742491894396,2e-07,84025.0,84024.0,1.48736583]
[1742491894804,0.0003384,84041.0,84024.0,1.48736583]
[1742491894805,4e-07,84041.0,84040.0,0.016899]
[1742491894968,4e-07,84041.0,84040.0,1.3760639]
[1742491895171,6e-07,84049.0,84048.0,0.649856]
[1742491895374,6e-07,84049.0,84048.0,1.33595103]
[1742491895582,0.00023928,84065.0,84064.0,0.349808]
[1742491895790,0.00023928,84065.0,84064.0,0.62072388]
[1742491896882,0.00023928,84065.0,84064.0,0.62111071]
[1742491897287,0.00023928,84065.0,84064.0,0.63308958]
[1742491897495,0.00023928,84065.0,84064.0,0.63408958]
[1742491897691,0.00023928,84065.0,84064.0,2.14319707]
[1742491897891,0.00023928,84065.0,84064.0,2.1312182]
[1742491898119,0.00023928,84065.0,84064.0,2.1429713]
[1742491898362,0.00023928,84065.0,84064.0,2.1312182]
[1742491898728,0.00023928,84065.0,84064.0,2.1322182]
[1742491899200,0.00023928,84065.0,84064.0,2.54584582]
[1742491899426,0.00023928,84065.0,84064.0,2.53673833]
[1742491899629,0.00023928,84065.0,84064.0,0.63558948]
[1742491899804,0.00023928,84065.0,84064.0,0.78424448]
[1742491900009,0.00023928,84065.0,84064.0,0.79878533]
[1742491900210,0.00023928,84065.0,84064.0,0.78424448]
[1742491900500,0.00023928,84065.0,84064.0,0.77234948]
[1742491900883,0.00312905,84065.0,84064.0,0.77134948]
[1742491901084,0.00312905,84065.0,84064.0,0.77234948]
[1742491901285,0.01502405,84065.0,84064.0,0.63558948]
[1742491901497,0.01502405,84065.0,84064.0,0.77234948]
[1742491901498,0.08382905,84065.0,84064.0,0.77234948]
[1742491901711,0.08382905,84065.0,84064.0,0.77134948]
[1742491901891,0.32174005,84065.0,84064.0,0.77134948]
[1742491902662,0.24104005,84065.0,84064.0,0.77134948]
[1742491903012,0.24104005,84065.0,84064.0,0.67030948]
[1742491903013,0.29923505,84065.0,84064.0,0.67030948]
[1742491903629,0.28734005,84065.0,84064.0,0.67030948]
[1742491904047,0.04942905,84065.0,84064.0,0.67030948]
[1742491904232,0.04942905,84065.0,84064.0,0.68220448]
[1742491904233,0.00312905,84065.0,84064.0,0.68220448]
[1742491904453,0.00023928,84065.0,84064.0,0.67030948]
[1742491904655,0.01502405,84065.0,84064.0,0.53358948]
[1742491904857,0.01502405,84065.0,84064.0,0.41401445]
[1742491905033,0.01502405,84065.0,84064.0,0.00038683]
[1742491905655,0.01502405,84065.0,84044.0,0.41362762]
[1742491905656,0.249865,84045.0,84044.0,0.41362762]
[1742491905855,0.249865,84045.0,84039.0,0.56624]
[1742491905856,0.24988,84040.0,84039.0,0.56624]
[1742491906109,0.26160604,84040.0,84039.0,0.68581503]
[1742491906335,0.26447216,84040.0,84039.0,0.68620282]
[1742491906499,0.25274612,84040.0,84039.0,0.68620282]
[1742491907656,0.26453425,84040.0,84039.0,0.68620282]
[1742491907935,0.25274612,84040.0,84039.0,2.18620282]
[1742491908134,0.00286612,84040.0,84039.0,2.55062667]
[1742491908550,0.01169596,84044.0,84039.0,2.18620282]
[1742491908726,0.011898,84045.0,84039.0,2.06662779]
[1742491908727,0.24988,84040.0,84039.0,2.06662779]
[1742491908951,0.237981,84040.0,84039.0,2.32292282]
[1742491909160,0.24082948,84040.0,84039.0,2.32292282]
[1742491909360,0.25272848,84040.0,84039.0,2.32292282]
[1742491910247,0.25272848,84040.0,84039.0,2.20334779]
[1742491910847,0.00284848,84040.0,84039.0,2.57280582]
[1742491911145,0.00284848,84040.0,84039.0,2.58734667]
[1742491911364,0.3,84049.0,84046.0,0.26440285]
[1742491911569,0.3,84059.0,84052.0,0.011897]
[1742491911778,0.01213671,84057.0,84056.0,0.249832]
[1742491911980,0.537928,84059.0,84056.0,0.237936]
[1742491912184,0.237934,84057.0,84054.0,0.237941]
[1742491912313,0.0789,84063.0,84058.0,0.23793]
[1742491912513,0.0789,84063.0,84054.0,0.011897]
[1742491912514,0.237925,84060.0,84059.0,0.11957503]
[1742491912719,0.0789,84063.0,84060.0,0.237922]
[1742491912929,0.0789,84063.0,84062.0,0.237919]
[1742491913467,0.0789,84063.0,84062.0,0.11957503]
[1742491913468,0.00282513,84063.0,84062.0,0.11957503]
[1742491913672,0.24074113,84063.0,84062.0,0.11957503]
[1742491913867,0.2499798,84064.0,84062.0,0.11957503]
[1742491914167,0.00284662,84063.0,84062.0,0.237919]
[1742491914466,0.00284662,84063.0,84062.0,0.35749403]
[1742491914685,0.00284662,84063.0,84062.0,0.36938903]
[1742491914870,0.00284662,84063.0,84062.0,0.38392988]
[1742491915925,0.25265762,84063.0,84062.0,0.13411588]
[1742491916266,0.25265762,84063.0,84062.0,0.11957503]
[1742491916471,0.00284662,84063.0,84062.0,0.11957503]
[1742491917070,0.00284662,84063.0,84062.0,0.35749403]
[1742491917469,0.00284662,84063.0,84062.0,0.38392988]
[1742491917811,0.0001688,84064.0,84063.0,0.249811]
[1742491918011,0.0001688,84064.0,84063.0,0.36938603]
[1742491919031,0.0001688,84064.0,84063.0,1.86938603]
[1742491919230,0.2380818,84064.0,84063.0,0.12157503]
[1742491919438,0.3309768,84064.0,84063.0,0.13872]
[1742491919617,0.63383874,84064.0,84063.0,0.13872]
[1742491920896,0.63383874,84064.0,84063.0,0.14072]
[1742491921099,0.63383874,84064.0,84063.0,0.13872]
[1742491921451,0.63383874,84064.0,84063.0,0.002]
[1742491921657,0.249829,84057.0,84051.0,1.5]
[1742491921859,0.011896,84059.0,84053.0,0.011897]
[1742491922060,0.00286915,84056.0,84054.0,0.11957503]
[1742491922300,0.237939,84056.0,84054.0,0.11957503]
[1742491922505,0.25270415,84055.0,84054.0,0.11957503]
[1742491923259,0.00286915,84055.0,84054.0,0.11957503]
[1742491923680,0.00286915,84055.0,84054.0,0.48395488]
[1742491924111,0.0001688,84064.0,84063.0,0.349811]
[1742491924322,0.2380818,84064.0,84063.0,0.37083588]
[1742491924534,0.0001688,84064.0,84063.0,0.52064688]
[1742491924733,0.00289437,84064.0,84063.0,0.52064688]
[1742491924941,0.0001688,84064.0,84063.0,0.52064688]
[1742491925582,0.0001688,84064.0,84063.0,0.9459449]
[1742491926112,0.0001688,84064.0,84063.0,1.0221449]
[1742491926539,0.0003382,84075.0,84074.0,0.349779]
[1742491926700,0.0003382,84075.0,84074.0,0.48389488]
[1742491927847,0.0003382,84075.0,84074.0,1.98428267]
[1742491928049,0.0003382,84075.0,84074.0,1.98828267]
[1742491928225,0.0003382,84075.0,84074.0,1.88828267]
[1742491928430,0.0003382,84075.0,84074.0,1.98828267]
[1742491928629,0.0003382,84075.0,84074.0,2.40191029]
[1742491929497,0.0003382,84075.0,84074.0,2.41096386]
[1742491930478,0.0003382,84075.0,84074.0,2.40896386]
[1742491930894,0.0003382,84075.0,84074.0,2.40996386]
[1742491931102,0.0003382,84075.0,84074.0,0.88636944]
[1742491931276,0.0003382,84075.0,84074.0,0.91463544]
[1742491931475,0.0003382,84075.0,84074.0,0.53959044]
[1742491931681,0.0003382,84075.0,84074.0,0.91467544]
[1742491931887,0.0031035,84075.0,84074.0,0.91467544]
[1742491932072,0.0003382,84075.0,84074.0,0.92356944]
[1742491932499,0.0003382,84075.0,84074.0,0.78636944]
[1742491932652,0.0003382,84075.0,84074.0,0.92348944]
[1742491932856,0.00309127,84075.0,84074.0,0.92048944]
[1742491933078,0.0003382,84075.0,84074.0,0.93503029]
[1742491934070,0.0003382,84075.0,84074.0,0.93703029]
[1742491935050,0.0003382,84075.0,84074.0,0.93503029]
[1742491935261,0.0003382,84075.0,84074.0,1.24503029]
[1742491935493,2e-07,84079.0,84078.0,0.354767]
[1742491935687,2e-07,84079.0,84078.0,0.9025105]
[1742491935902,2e-07,84079.0,84078.0,0.8975105]
[1742491936100,2e-07,84079.0,84078.0,0.9025105]
[1742491937465,2e-07,84079.0,84078.0,0.8975105]
[1742491937692,2e-07,84079.0,84078.0,2.41243147]
[1742491938123,2e-07,84079.0,84078.0,2.54959147]
[1742491938739,2e-07,84079.0,84078.0,2.57381057]
[1742491939098,2e-07,84079.0,84078.0,2.57981057]
[1742491939504,2e-07,84079.0,84078.0,3.14585057]
[1742491939711,2e-07,84079.0,84078.0,3.13985057]
[1742491940068,2e-07,84079.0,84078.0,3.14585057]
[1742491940295,2e-07,84079.0,84078.0,3.13985057]
[1742491940699,2e-07,84079.0,84078.0,3.14485057]
[1742491941746,2e-07,84079.0,84078.0,3.13885057]
[1742491941950,2e-07,84079.0,84078.0,3.14485057]
[1742491942423,2e-07,84079.0,84078.0,3.13885057]
[1742491942787,2e-07,84079.0,84078.0,3.14385057]
[1742491943960,2e-07,84079.0,84078.0,3.44279285]
[1742491944391,2e-07,84079.0,84078.0,3.00169057]
[1742491944523,2e-07,84079.0,84078.0,3.13917057]
[1742491944739,2e-07,84079.0,84078.0,3.14517057]
[1742491945124,2e-07,84079.0,84078.0,2.98422875]
[1742491945333,2e-07,84079.0,84078.0,0.85231413]
[1742491945570,0.2497642,84079.0,84078.0,0.82809503]
[1742491945774,0.25262156,84079.0,84078.0,0.83409503]
[1742491945972,0.25262156,84079.0,84078.0,0.82909503]
[1742491946297,0.61292169,84079.0,84078.0,0.57204]
[1742491946487,0.63156836,84079.0,84078.0,0.57804]
[1742491946714,0.63156836,84079.0,84078.0,0.57204]
[1742491946910,0.63156836,84079.0,84078.0,0.69161503]
[1742491947146,0.63156836,84079.0,84078.0,0.69361503]
[1742491947353,0.63156836,84079.0,84078.0,0.69161503]
[1742491947715,0.63156836,84079.0,84078.0,2.18561503]
[1742491947907,0.61967536,84079.0,84078.0,2.18561503]
[1742491948090,0.61967536,84079.0,84078.0,0.69061503]
[1742491948519,0.61967536,84079.0,84078.0,0.68561503]
[1742491949438,0.38180436,84079.0,84078.0,0.68561503]
[1742491949643,0.36315769,84079.0,84078.0,0.68561503]
[1742491949841,0.06315769,84079.0,84078.0,0.68561503]
[1742491950279,0.06315769,84079.0,84078.0,0.92348903]
[1742491950673,0.06315769,84079.0,84078.0,0.92382723]
[1742491950812,0.06046943,84079.0,84078.0,0.92382723]
[1742491951013,0.0001693,84079.0,84078.0,0.93572023]
[1742491951335,0.0001693,84079.0,84078.0,0.95026108]
[1742491951719,0.0001693,84079.0,84078.0,1.08774108]
[1742491952121,0.0001693,84079.0,84078.0,1.08874108]
[1742491952531,3e-07,84079.0,84078.0,1.08974108]
[1742491952923,3e-07,84079.0,84078.0,1.5023687]
[1742491953572,3e-07,84079.0,84078.0,1.52492266]
[1742491953798,3e-07,84079.0,84078.0,1.53092266]
[1742491954399,3e-07,84079.0,84078.0,1.52892266]
[1742491954517,3e-07,84079.0,84078.0,1.53292266]
[1742491956890,5e-07,84086.0,84085.0,0.349746]
[1742491957084,5e-07,84086.0,84085.0,0.48386188]
[1742491957739,5e-07,84086.0,84085.0,1.98386188]
[1742491958152,5e-07,84086.0,84085.0,1.98686188]
[1742491958332,5e-07,84086.0,84085.0,0.48686188]
[1742491958665,5e-07,84086.0,84085.0,0.48386188]
[1742491958871,5e-07,84086.0,84085.0,0.48986188]
[1742491959047,5e-07,84086.0,84085.0,0.49286188]
[1742491959293,5e-07,84086.0,84085.0,0.48686188]
[1742491959491,5e-07,84086.0,84085.0,0.47532103]
[1742491960318,5e-07,84086.0,84085.0,0.48686188]
[1742491960736,5e-07,84086.0,84085.0,0.48986188]
[1742491961148,5e-07,84086.0,84085.0,0.48686188]
[1742491961486,5e-07,84086.0,84085.0,0.48886188]
[1742491961682,5e-07,84086.0,84085.0,0.48586188]
[1742491961888,5e-07,84086.0,84085.0,0.48386188]
[1742491962204,5e-07,84086.0,84085.0,0.48886188]
[1742491962401,5e-07,84086.0,84085.0,0.48686188]
[1742491962655,5e-07,84086.0,84085.0,0.48986188]
[1742491963754,5e-07,84086.0,84085.0,0.9034895]
[1742491963959,5e-07,84086.0,84085.0,0.7915975]
[1742491964161,0.2497435,84086.0,84085.0,0.53920265]
[1742491964568,0.25255768,84086.0,84085.0,0.53920265]
[1742491964791,0.25255768,84086.0,84085.0,0.53620265]
[1742491964992,0.25255768,84086.0,84085.0,0.53320265]
[1742491965395,0.25255768,84086.0,84085.0,0.53420265]
[1742491965541,0.25255768,84086.0,84085.0,0.41462762]
[1742491965747,0.32965768,84086.0,84085.0,0.41462762]
[1742491966609,0.62965768,84086.0,84085.0,0.001]
[1742491967184,0.6433048,84086.0,84085.0,0.001]
[1742491967395,0.65529217,84086.0,84085.0,0.001]
[1742491969542,0.549764,84079.0,84078.0,0.0003382]
[1742491970069,0.55257818,84079.0,84078.0,0.0003382]
[1742491973485,0.00281418,84079.0,84078.0,0.36968023]
[1742491973686,0.00281418,84079.0,84078.0,0.35778723]
[1742491973884,0.237866,84081.0,84078.0,0.35778723]
[1742491974097,0.3,84082.0,84081.0,0.237865]
[1742491974339,0.3,84082.0,84081.0,0.35744003]
[1742491974539,0.3,84082.0,84081.0,0.11957503]
[1742491974730,0.3,84082.0,84081.0,0.35744003]
[1742491975300,0.537854,84085.0,84082.0,0.237863]
[1742491975505,0.3,84085.0,84083.0,0.11957503]
[1742491975712,0.537857,84084.0,84083.0,0.11957503]
[1742491976907,0.3,84084.0,84083.0,0.11957503]
[1742491977169,0.3,84084.0,84083.0,0.35743503]
[1742491977348,0.3,84084.0,84083.0,0.11957503]
[1742491977557,0.549749,84084.0,84083.0,0.11957503]
[1742491978516,0.537857,84084.0,84083.0,0.11957503]
[1742491979422,0.02404847,84086.0,84085.0,0.26428685]
[1742491979423,0.0001691,84086.0,84085.0,0.26428685]
[1742491979636,0.0001691,84086.0,84085.0,0.38386188]
[1742491979843,0.00297232,84086.0,84085.0,0.38386188]
[1742491980767,0.00297232,84086.0,84085.0,0.13411588]
[1742491980968,0.00297232,84086.0,84085.0,0.11957503]
[1742491981172,0.2499121,84086.0,84085.0,0.11957503]
[1742491981368,0.25271663,84086.0,84085.0,0.11957503]
[1742491981735,0.00297363,84086.0,84085.0,0.11957503]
[1742491981979,0.00297363,84086.0,84085.0,0.36932103]
[1742491982571,0.00297363,84086.0,84085.0,0.11957503]
[1742491982771,0.25271663,84086.0,84085.0,0.11957503]
[1742491985472,0.55271663,84086.0,84085.0,0.0003382]
[1742491985943,0.67611663,84086.0,84085.0,0.0003382]
[1742491992883,0.00297363,84086.0,84085.0,0.2381922]
[1742491993057,0.00297363,84086.0,84085.0,0.36965923]
[1742491993262,0.00297363,84086.0,84085.0,1.86965923]
[1742491993263,0.0001691,84086.0,84085.0,1.86965923]
[1742491993466,0.00294115,84086.0,84085.0,1.86965923]
[1742491993664,0.0001691,84086.0,84085.0,1.86965923]
[1742491994072,0.00294115,84086.0,84085.0,1.86965923]
[1742491994272,0.0001691,84086.0,84085.0,1.86965923]
[1742491994478,0.00294115,84086.0,84085.0,1.86965923]
[1742491994827,0.0001691,84086.0,84085.0,1.86965923]
[1742491995033,0.0031691,84086.0,84085.0,2.5213277]
[1742491995436,0.0001691,84086.0,84085.0,2.5213277]
[1742491995649,0.0001691,84086.0,84085.0,3.0874477]
[1742491996875,1e-07,84086.0,84085.0,3.0914477]
[1742491997029,1e-07,84086.0,84085.0,3.0874477]
[1742491997240,1e-07,84086.0,84085.0,3.3924477]
[1742491997475,1e-07,84086.0,84085.0,3.3984477]
[1742491997873,1e-07,84086.0,84085.0,3.3924477]
[1742491998103,1e-07,84086.0,84085.0,3.3974477]
[1742491998314,1e-07,84086.0,84085.0,3.4034477]
[1742491999355,1e-07,84086.0,84085.0,3.3984477]
[1742491999527,1e-07,84086.0,84085.0,3.3924477]
[1742491999738,1e-07,84086.0,84085.0,3.3984477]
[1742491999952,1e-07,84086.0,84085.0,3.4044477]
[1742492000765,1e-07,84086.0,84085.0,3.3984477]
[1742492001004,1e-07,84086.0,84085.0,3.4044477]
[1742492001234,1e-07,84086.0,84085.0,3.3984477]
[1742492001441,1e-07,84086.0,84085.0,3.4044477]
[1742492002592,0.249622,84127.0,84085.0,3.4044477]
[1742492002593,0.057586,84129.0,84108.0,0.36421885]
[1742492002816,0.237733,84128.0,84108.0,1.0341014]
[1742492002943,0.01202997,84124.0,84108.0,1.0341014]
[1742492003150,0.26536908,84130.0,84108.0,2.5341014]
[1742492003354,0.3,84129.0,84108.0,2.5823014]
[1742492003559,0.02400309,84128.0,84108.0,2.5823014]
[1742492003781,0.02400309,84128.0,84108.0,2.5853014]
[1742492004003,0.26173809,84128.0,84108.0,2.58568919]
[1742492004442,0.011886,84127.0,84108.0,2.58568919]
[1742492004643,0.237745,84124.0,84108.0,2.58868919]
[1742492004854,0.011887,84125.0,84108.0,2.58868919]
[1742492005071,0.011887,84125.0,84108.0,2.54048919]
[1742492005072,0.237767,84116.0,84108.0,2.54048919]
[1742492005396,0.011888,84118.0,84108.0,1.04048919]
[1742492005569,0.237767,84116.0,84108.0,1.04048919]
[1742492005931,0.37044154,84120.0,84108.0,1.04048919]
[1742492006139,0.03140777,84126.0,84108.0,1.04048919]
[1742492006508,0.00090056,84109.0,84108.0,1.04048919]
[1742492006712,0.00090056,84109.0,84108.0,1.60644919]
[1742492007101,0.00090056,84109.0,84108.0,1.63038252]
[1742492007668,0.00090056,84109.0,84108.0,3.13038252]
[1742492008825,0.00090056,84109.0,84108.0,3.13034252]
[1742492009601,0.00106966,84109.0,84108.0,3.13034252]
[1742492010391,6.6e-07,84109.0,84108.0,3.56294252]
[1742492010607,6.6e-07,84109.0,84108.0,3.55794252]
[1742492010786,6.6e-07,84109.0,84108.0,3.55494252]
[1742492011122,6.6e-07,84109.0,84108.0,3.55794252]
[1742492011304,6.6e-07,84109.0,84108.0,3.56294252]
[1742492011513,6.6e-07,84109.0,84108.0,3.55794252]
[1742492011641,6.6e-07,84109.0,84108.0,3.55194252]
[1742492012050,6.6e-07,84109.0,84108.0,3.55794252]
[1742492013285,6.6e-07,84109.0,84108.0,3.55194252]
[1742492013659,6.6e-07,84109.0,84108.0,3.43034252]
[1742492014473,6.6e-07,84109.0,84108.0,3.12180167]
[1742492014677,6.6e-07,84109.0,84108.0,3.13034252]
[1742492014929,6.6e-07,84109.0,84108.0,3.12434252]
[1742492015648,6.6e-07,84109.0,84108.0,3.12734252]
[1742492016284,6.6e-07,84109.0,84108.0,3.13334252]
[1742492016715,6.6e-07,84109.0,84108.0,3.12734252]
[1742492017019,6.6e-07,84109.0,84108.0,3.13334252]
[1742492017231,6.6e-07,84109.0,84108.0,3.43034252]
[1742492017385,6.6e-07,84109.0,84108.0,3.43434252]
[1742492017568,6.6e-07,84109.0,84108.0,3.43034252]
[1742492017782,6.6e-07,84109.0,84108.0,3.11580167]
[1742492018006,6.6e-07,84109.0,84108.0,3.12180167]
[1742492018634,6.6e-07,84109.0,84108.0,2.99970252]
[1742492018833,6.6e-07,84109.0,84108.0,3.13034252]
[1742492019245,6.6e-07,84109.0,84108.0,3.12434252]
[1742492019439,6.6e-07,84109.0,84108.0,3.12934252]
[1742492019944,6.6e-07,84109.0,84108.0,3.12434252]
[1742492020158,6.6e-07,84109.0,84108.0,3.20744252]
[1742492020497,6.6e-07,84109.0,84108.0,3.21244252]
[1742492020705,6.6e-07,84109.0,84108.0,3.50744252]
[1742492020906,6.6e-07,84109.0,84108.0,3.51244252]
[1742492021053,6.6e-07,84109.0,84108.0,3.51844252]
[1742492021465,6.6e-07,84109.0,84108.0,3.56494252]
[1742492021720,6.6e-07,84109.0,84108.0,3.57094252]
[1742492022338,6.6e-07,84109.0,84108.0,3.55994252]
[1742492022707,6.6e-07,84109.0,84108.0,3.56594252]
[1742492023136,6.6e-07,84109.0,84108.0,3.56028052]
[1742492023810,6.6e-07,84109.0,84108.0,3.56628052]
[1742492024030,6.6e-07,84109.0,84108.0,3.56028052]
[1742492024201,6.6e-07,84109.0,84108.0,3.56628052]
[1742492025270,6.6e-07,84109.0,84108.0,3.56624052]
[1742492025880,6.6e-07,84109.0,84108.0,3.56024052]
[1742492026336,6.6e-07,84109.0,84108.0,3.56624052]
[1742492026485,6.6e-07,84109.0,84108.0,3.56024052]
[1742492026838,6.6e-07,84109.0,84108.0,3.56624052]
[1742492027770,6.6e-07,84109.0,84108.0,3.42964052]
[1742492027979,6.6e-07,84109.0,84108.0,3.56624052]
[1742492030620,6.6e-07,84109.0,84108.0,3.30004052]
[1742492030821,6.6e-07,84109.0,84108.0,3.43664052]
[1742492031420,6.6e-07,84109.0,84108.0,3.12209967]
[1742492031626,6.6e-07,84109.0,84108.0,3.12464052]
[1742492032076,6.6e-07,84109.0,84108.0,3.13664052]
[1742492032270,6.6e-07,84109.0,84108.0,3.13064052]
[1742492032422,6.6e-07,84109.0,84108.0,3.12464052]
[1742492032632,6.6e-07,84109.0,84108.0,3.13064052]
[1742492032849,6.6e-07,84109.0,84108.0,3.13664052]
[1742492033251,6.6e-07,84109.0,84108.0,3.13064052]
[1742492033720,6.6e-07,84109.0,84108.0,2.63382167]
[1742492033925,0.249675,84109.0,84108.0,2.63382167]
[1742492034131,0.26139196,84109.0,84108.0,2.07668579]
[1742492034337,0.26433602,84109.0,84108.0,0.57668579]
[1742492034542,0.26433602,84109.0,84108.0,0.57068579]
[1742492034712,0.26450502,84109.0,84108.0,0.00472579]
[1742492034943,0.09263002,84109.0,84108.0,0.00072579]
[1742492035262,0.33041602,84109.0,84108.0,0.00772579]
[1742492035458,0.34230502,84109.0,84108.0,0.00772579]
[1742492035663,0.34230502,84109.0,84108.0,0.00072579]
[1742492035889,0.34230502,84109.0,84108.0,0.00272579]
[1742492036089,0.36094681,84109.0,84108.0,0.00472579]
[1742492036584,0.66094681,84109.0,84108.0,0.00272579]
[1742492036787,0.66094681,84109.0,84108.0,0.00072579]
[1742492037106,0.70874681,84109.0,84108.0,0.00072579]
[1742492038094,0.70874681,84109.0,84108.0,0.00172579]
[1742492038502,0.70874681,84109.0,84108.0,0.00072579]
[1742492039838,0.677528,84091.0,84090.0,0.56576]
[1742492040198,0.677528,84091.0,84085.0,0.0003382]
[1742492040199,0.249743,84086.0,84085.0,0.0003382]
[1742492040402,0.249743,84086.0,84085.0,0.00072431]
[1742492040756,0.25260417,84086.0,84085.0,0.00072431]
[1742492042130,0.25360417,84086.0,84085.0,0.00072431]
[1742492042794,0.33040417,84086.0,84085.0,0.00072431]
[1742492042948,0.63140417,84086.0,84085.0,0.00072431]
[1742492043968,0.65005158,84086.0,84085.0,0.00072431]
[1742492055058,0.63140417,84086.0,84085.0,0.00072431]
[1742492056791,1.47561217,84086.0,84085.0,0.00072431]
[1742492057010,1.52141217,84086.0,84085.0,0.00072431]
[1742492057610,0.85677517,84086.0,84085.0,0.00072431]
[1742492058014,0.87442314,84086.0,84085.0,0.00072431]
[1742492058422,0.87542314,84086.0,84085.0,0.00072431]
[1742492058592,0.87942314,84086.0,84085.0,0.00072431]
[1742492060405,0.549829,84057.0,84056.0,0.0003382]
[1742492060605,0.549829,84057.0,84056.0,0.00072503]
[1742492060810,0.55259405,84057.0,84056.0,0.00072503]
[1742492062098,0.55559405,84057.0,84056.0,0.00072503]
[1742492062215,0.55759405,84057.0,84056.0,0.00072503]
[1742492062411,0.55759405,84057.0,84056.0,3e-08]
[1742492062621,0.54988,84040.0,84039.0,0.0003376]
[1742492062823,0.62792113,84040.0,84039.0,0.00072394]
[1742492063227,0.68869816,84040.0,84039.0,9.4e-07]
[1742492063690,0.549928,84024.0,84002.0,0.41362752]
[1742492063902,0.55255296,84024.0,84023.0,0.00072829]
[1742492065166,0.57121452,84024.0,84023.0,0.00072829]
[1742492065935,0.57421452,84024.0,84023.0,0.00072829]
[1742492066302,0.57821452,84024.0,84023.0,0.00072829]
[1742492067712,0.56631352,84024.0,84023.0,0.00072829]
[1742492067895,0.57821452,84024.0,84023.0,0.00072829]
[1742492068100,0.02828652,84024.0,84023.0,0.35833332]
[1742492068332,0.02828652,84024.0,84023.0,0.38477517]
[1742492068333,0.00962496,84024.0,84023.0,0.38477517]
[1742492068488,0.003,84024.0,84023.0,0.38477517]
[1742492068899,0.51542811,84040.0,84036.0,0.237991]
[1742492069098,0.24109449,84039.0,84037.0,0.11957503]
[1742492069298,0.00310849,84039.0,84037.0,0.11957503]
[1742492069687,0.00310849,84039.0,84037.0,0.35756303]
[1742492070709,0.237987,84038.0,84037.0,0.11957503]
[1742492070913,0.00310849,84039.0,84037.0,0.11957503]
[1742492071122,0.00313759,84038.0,84037.0,0.36946403]
[1742492071688,0.249885,84039.0,84037.0,0.11957503]
[1742492071886,0.249904,84032.0,84025.0,0.238022]
[1742492072069,0.249904,84032.0,84031.0,0.25633503]
[1742492072300,0.238003,84033.0,84031.0,0.11957503]
[1742492072567,0.00313759,84032.0,84031.0,0.02644085]
[1742492072805,0.00313759,84032.0,84031.0,0.14601588]
[1742492073033,0.237968,84045.0,84038.0,0.237985]
[1742492073034,0.237976,84042.0,84038.0,0.237985]
[1742492073225,0.011899,84040.0,84039.0,0.11957503]
[1742492073429,0.24988,84040.0,84039.0,0.11957503]
[1742492073570,0.2530788,84040.0,84039.0,0.11957503]
[1742492073771,0.2530788,84040.0,84031.0,0.251905]
[1742492073772,0.011899,84039.0,84033.0,0.13676]
[1742492074030,0.237987,84038.0,84034.0,0.11957503]
[1742492074445,0.0031988,84037.0,84035.0,0.237995]
[1742492074650,0.0031988,84037.0,84036.0,0.11957503]
[1742492074956,0.24968386,84042.0,84036.0,0.13147403]
[1742492075161,0.05974235,84107.0,84036.0,0.13147403]
[1742492075162,0.011897,84052.0,84043.0,0.237971]
[1742492075362,0.50333208,84047.0,84044.0,0.35754503]
[1742492075568,0.26536908,84047.0,84044.0,0.11957503]
[1742492075774,0.0186555,84047.0,84046.0,0.24986]
[1742492075980,0.0186555,84047.0,84046.0,0.36943503]
[1742492078314,0.0196555,84047.0,84046.0,0.36943503]
[1742492078735,0.0186555,84047.0,84046.0,0.36943503]
[1742492078936,0.0186555,84047.0,84046.0,0.37143503]
[1742492079138,0.0186555,84047.0,84046.0,0.37343503]
[1742492079376,0.0186555,84047.0,84046.0,0.38797588]
[1742492079986,0.0186555,84047.0,84046.0,0.004]
[1742492080193,0.2566175,84047.0,84046.0,0.004]
[1742492080366,0.27174197,84047.0,84046.0,0.004]
[1742492080901,0.25308647,84047.0,84046.0,0.004]
[1742492081923,0.25308647,84047.0,84046.0,0.002]
[1742492082153,0.237971,84044.0,84042.0,0.41362752]
[1742492082366,0.25308647,84047.0,84042.0,0.41362752]
[1742492082367,0.00322647,84047.0,84046.0,0.001]
[1742492082515,0.237956,84049.0,84046.0,0.238964]
[1742492082719,0.02938035,84078.0,84046.0,0.238964]
[1742492082720,0.01202581,84053.0,84052.0,0.011897]
[1742492082924,0.26536908,84060.0,84059.0,0.249824]
[1742492083124,0.26536908,84070.0,84065.0,0.011895]
[1742492083477,0.50326608,84070.0,84066.0,0.11957503]
[1742492083661,0.26536908,84070.0,84068.0,0.237901]
[1742492083806,0.50326608,84070.0,84069.0,0.11957503]
[1742492084224,0.237897,84070.0,84069.0,0.11957503]
[1742492084443,0.25654482,84071.0,84070.0,0.24979]
[1742492084444,0.01865082,84071.0,84070.0,0.24979]
[1742492084629,0.01220832,84072.0,84071.0,0.249788]
[1742492084842,0.011893,84077.0,84071.0,0.11957503]
[1742492085102,0.237882,84075.0,84072.0,0.11957503]
[1742492085311,0.237888,84073.0,84072.0,0.11957503]